fUSD/lending_fUSD_20241003
["ID","MTS","AMOUNT","RATE_DAILY","PERIOD"]
[339796731,1727987572861,-1057.1,0.0003726,120]
[339796732,1727987572874,-1543.66,0.0003726,120]
[339796733,1727987572884,-567.28,0.0003726,120]
[339796734,1727987572894,-1173.73,0.0003726,120]
[339796735,1727987572904,-622.45,0.0003726,120]
[339796736,1727987572914,-831.03,0.0003726,120]
[339796737,1727987572923,-574.46,0.0003726,120]
[339796738,1727987572933,-605.72,0.0003726,120]
[339796739,1727987572945,-656.14,0.0003726,24]
[339796740,1727987572956,-1059.55,0.0003726,120]
[339796741,1727987572967,-999.57,0.0003726,120]
[339796742,1727987572982,-1114.36,0.0003726,120]
[339796743,1727987572991,-173.51623507,0.0003726,120]
[339796744,1727987573000,-2557.98,0.0003726,120]
[339796745,1727987573010,-2619.08,0.0003726,120]
[339796746,1727987573019,-985.85,0.0003726,120]
[339796747,1727987573028,-2196.8,0.0003726,120]
[339796748,1727987573037,-1368.57,0.0003726,120]
[339796749,1727987573046,-534.46,0.0003726,120]
[339796750,1727987573055,-623.45,0.0003726,120]
[339796751,1727987573064,-1760.97,0.0003726,120]
[339796752,1727987573074,-4833.89,0.0003726,120]
[339796753,1727987573083,-1036.03,0.0003726,120]
[339796754,1727987573092,-613.95,0.0003726,120]
[339796755,1727987573101,-1295.57,0.0003726,120]
[339796756,1727987573111,-1100.59,0.0003726,120]
[339796757,1727987573121,-1437.23,0.0003726,120]
[339796758,1727987573131,-581.64,0.0003726,120]
[339796759,1727987573141,-500.0,0.0003726,120]
[339796760,1727987573150,-1584.05,0.0003726,120]
[339796761,1727987573160,-500.0,0.0003726,120]
[339796762,1727987573170,-1739.53,0.0003726,120]
[339796763,1727987573180,-780.59,0.0003726,120]
[339796764,1727987573191,-202.391264,0.0003726,120]
[339796765,1727987573201,-10179.37,0.0003726,120]
[339796766,1727987573211,-567.89,0.0003726,120]
[339796767,1727987573221,-1002.66,0.0003726,120]
[339796768,1727987573231,-504.47,0.0003726,120]
[339796769,1727987573241,-859.91,0.0003726,120]
[339796770,1727987573250,-8270.07,0.0003726,21]
[339796771,1727987573260,-669.41,0.0003726,120]
[339796772,1727987573269,-4586.08,0.0003726,120]
[339796773,1727987573279,-2304.02,0.0003726,120]
[339796774,1727987573288,-631.12,0.0003726,120]
[339796775,1727987573298,-1138.44,0.0003726,120]
[339796776,1727987573307,-811.67,0.0003726,120]
[339796777,1727987573317,-536.29,0.0003726,120]
[339796778,1727987573327,-994.04,0.0003726,120]
[339796779,1727987573336,-4294.0375607,0.00037261,60]
[339796780,1727987573346,-150.0,0.00037267,120]
[339796781,1727987573355,-11000.0,0.000373,30]
[339796782,1727987573365,-6596.78538516,0.000373,60]
[339796783,1727987573374,-410.57774333,0.00037386,70]
[339796784,1727987573384,-718991.09854408,0.000374,30]
[339796785,1727987573394,-250.0,0.0003747,2]
[339796786,1727987573404,-1564.93,0.00037486,2]
[339796787,1727987573413,-411.0,0.00037486,90]
[339796788,1727987573425,-1000000.0,0.000375,120]
[339796789,1727987573434,-223.0,0.000375,30]
[339796790,1727987573443,-206.0,0.000375,30]
[339796791,1727987573453,-217.0,0.000375,30]
[339796792,1727987573462,-2251.5019805,0.00037515,7]
[339796793,1727987573477,-3007.50576663,0.00037515,7]
[339796794,1727987573486,-2899.87242423,0.00037515,7]
[339796795,1727987573495,-500.0,0.00037534,120]
[339796796,1727987573504,-900.0,0.00037534,7]
[339796797,1727987573514,-1300.0,0.00037534,7]
[339796798,1727987573523,-1830.04,0.00037534,120]
[339796799,1727987573532,-1465.14,0.00037534,120]
[339796800,1727987573541,-731.74,0.00037534,120]
[339796801,1727987573550,-595.09022472,0.00037534,120]
[339796802,1727987573561,-500.0,0.00037534,120]
[339796803,1727987573570,-1375.31,0.00037534,120]
[339796804,1727987573579,-668.57,0.00037534,120]
[339796805,1727987573590,-500.0,0.00037534,120]
[339796806,1727987573601,-1062.68,0.00037534,120]
[339796807,1727987573612,-1108.65,0.00037534,120]
[339796808,1727987573622,-1917.75,0.00037534,120]
[339796809,1727987573631,-1239.66,0.00037534,120]
[339796810,1727987573642,-749.5,0.00037534,120]
[339796811,1727987573652,-1219.3,0.00037534,120]
[339796812,1727987573662,-1706.35,0.00037534,120]
[339796813,1727987573671,-1816.28,0.00037534,120]
[339796814,1727987573681,-608.59,0.00037534,120]
[339796815,1727987573691,-688.2,0.00037534,120]
[339796816,1727987573703,-818.32,0.00037534,120]
[339796817,1727987573713,-2173.75,0.00037534,120]
[339796818,1727987573722,-721.06,0.00037534,120]
[339796819,1727987573732,-2649.5,0.00037534,120]
[339796820,1727987573742,-500.0,0.00037534,120]
[339796821,1727987573752,-500.0,0.00037534,120]
[339796822,1727987573761,-500.0,0.00037534,120]
[339796823,1727987573771,-952.32,0.00037534,120]
[339796824,1727987573782,-300.17159282,0.00037534,15]
[339796825,1727987573793,-508.75,0.00037534,120]
[339796826,1727987573802,-500.0,0.00037534,120]
[339796827,1727987573811,-2782.16,0.00037534,120]
[339796828,1727987573821,-500.0,0.00037534,120]
[339796829,1727987573831,-590.00717309,0.00037534,120]
[339796830,1727987573840,-799.66,0.00037534,120]
[339796831,1727987573850,-500.0,0.00037534,120]
[339796832,1727987573861,-528.54,0.00037534,120]
[339796833,1727987573874,-500.0,0.00037534,120]
[339796834,1727987573883,-1116.48,0.00037534,120]
[339796835,1727987573893,-500.0,0.00037534,120]
[339796836,1727987573902,-630.81932734,0.00037534,120]
[339796837,1727987573912,-667.6,0.00037534,120]
[339796838,1727987573922,-516.86,0.00037534,120]
[339796839,1727987573932,-577.36,0.00037534,120]
[339796840,1727987573942,-500.0,0.00037534,120]
[339796841,1727987573953,-2275.0,0.00037534,120]
[339796842,1727987573962,-1181.76,0.00037534,120]
[339796843,1727987573972,-1059.01,0.00037534,120]
[339796844,1727987573982,-500.0,0.00037534,120]
[339796845,1727987573992,-678.32,0.00037534,120]
[339796846,1727987574002,-908.96,0.00037534,120]
[339796847,1727987574012,-500.0,0.00037534,120]
[339796848,1727987574022,-806.47,0.00037534,120]
[339796849,1727987574031,-1850.2,0.00037534,120]
[339796850,1727987574041,-403.07985948,0.00037534,120]
[339796851,1727987574051,-500.0,0.00037534,120]
[339796852,1727987574061,-532.65,0.00037534,120]
[339796853,1727987574071,-500.0,0.00037534,120]
[339796854,1727987574080,-500.0,0.00037534,120]
[339796855,1727987574089,-951.98,0.00037534,120]
[339796856,1727987574099,-3113.1,0.00037534,120]
[339796857,1727987574109,-952.18,0.00037534,120]
[339796858,1727987574119,-1578.27,0.00037534,120]
[339796859,1727987574129,-799.85,0.00037534,120]
[339796860,1727987574139,-708.6,0.00037534,120]
[339796861,1727987574149,-584.82,0.00037534,120]
[339796862,1727987574158,-560.83,0.00037534,120]
[339796863,1727987574168,-610.78,0.00037534,120]
[339796864,1727987574178,-1249.01,0.00037534,120]
[339796865,1727987574188,-500.0,0.00037534,120]
[339796866,1727987574198,-1225.26,0.00037534,120]
[339796867,1727987574208,-911.79,0.00037534,120]
[339796868,1727987574218,-817.82,0.00037534,120]
[339796869,1727987574228,-517.59,0.00037534,120]
[339796870,1727987574237,-1292.49,0.00037534,7]
[339796871,1727987574246,-302.68555505,0.00037534,120]
[339796872,1727987574256,-762.72,0.00037534,120]
[339796873,1727987574265,-1184.87,0.00037534,120]
[339796874,1727987574275,-1701.57,0.00037534,120]
[339796875,1727987574285,-714.2,0.00037534,120]
[339796876,1727987574294,-1396.71,0.00037534,120]
[339796877,1727987574303,-676.51,0.00037534,120]
[339796878,1727987574313,-1713.42,0.00037534,120]
[339796879,1727987574322,-543.4,0.00037534,120]
[339796880,1727987574332,-615.69,0.00037534,120]
[339796881,1727987574341,-675.57,0.00037534,120]
[339796882,1727987574349,-822.0,0.00037534,120]
[339796883,1727987574358,-500.0,0.00037534,120]
[339796884,1727987574368,-781.4,0.00037534,120]
[339796885,1727987574378,-747.69,0.00037534,120]
[339796886,1727987574387,-500.0,0.00037534,120]
[339796887,1727987574396,-911.34,0.00037534,120]
[339796888,1727987574405,-617.77,0.00037534,120]
[339796889,1727987574415,-500.0,0.00037534,120]
[339796890,1727987574425,-1099.61,0.00037534,120]
[339796891,1727987574435,-1245.73,0.00037534,120]
[339796892,1727987574445,-605.0,0.00037534,120]
[339796893,1727987574454,-614.52,0.00037534,120]
[339796894,1727987574464,-570.35,0.00037534,120]
[339796895,1727987574474,-806.75,0.00037534,120]
[339796896,1727987574484,-761.4,0.00037534,120]
[339796897,1727987574493,-500.0,0.00037534,120]
[339796898,1727987574504,-1016.56,0.00037534,120]
[339796899,1727987574513,-500.0,0.00037534,120]
[339796900,1727987574523,-908.19,0.00037534,120]
[339796901,1727987574533,-500.0,0.00037534,120]
[339796902,1727987574543,-650.02,0.00037534,120]
[339796903,1727987574552,-2907.54,0.00037534,120]
[339796904,1727987574564,-1955.84,0.00037534,120]
[339796905,1727987574573,-666.23,0.00037534,120]
[339796906,1727987574583,-619.0,0.00037534,120]
[339796907,1727987574592,-1476.07,0.00037534,120]
[339796908,1727987574602,-500.0,0.00037534,120]
[339796909,1727987574611,-200.0,0.00037534,7]
[339796910,1727987574621,-664.13,0.00037534,120]
[339796911,1727987574630,-580.92,0.00037534,120]
[339796912,1727987574640,-559.23,0.00037534,120]
[339796913,1727987574650,-682.12,0.00037534,120]
[339796914,1727987574659,-662.07,0.00037534,120]
[339796915,1727987574669,-1017.64,0.00037534,120]
[339796916,1727987574679,-1843.32,0.00037534,120]
[339796917,1727987574688,-929.85,0.00037534,120]
[339796918,1727987574697,-903.96,0.00037534,120]
[339796919,1727987574706,-1244.9,0.00037534,120]
[339796920,1727987574717,-2059.5,0.00037534,120]
[339796921,1727987574729,-1208.85,0.00037534,120]
[339796922,1727987574739,-1392.18,0.00037534,120]
[339796923,1727987574748,-1754.22,0.00037534,120]
[339796924,1727987574757,-3096.26,0.00037534,120]
[339796925,1727987574767,-838.34,0.00037534,120]
[339796926,1727987574776,-500.0,0.00037534,120]
[339796927,1727987574787,-1262.93,0.00037534,120]
[339796928,1727987574796,-767.37,0.00037534,120]
[339796929,1727987574805,-546.33,0.00037534,120]
[339796930,1727987574814,-1915.72,0.00037534,120]
[339796931,1727987574824,-871.88,0.00037534,120]
[339796932,1727987574834,-900.49,0.00037534,120]
[339796933,1727987574843,-542.05,0.00037534,120]
[339796934,1727987574852,-1246.58,0.00037534,120]
[339796935,1727987574861,-755.2,0.00037534,120]
[339796936,1727987574874,-515.39,0.00037534,120]
[339796937,1727987574884,-1449.61,0.00037534,120]
[339796938,1727987574893,-615.97,0.00037534,120]
[339796939,1727987574903,-500.0,0.00037534,120]
[339796940,1727987574914,-828.98,0.00037534,120]
[339796941,1727987574923,-522.48,0.00037534,120]
[339796942,1727987574933,-769.93,0.00037534,120]
[339796943,1727987574943,-500.0,0.00037534,120]
[339796944,1727987574953,-1535.42,0.00037534,120]
[339796945,1727987574963,-692.01,0.00037534,120]
[339796946,1727987574973,-500.0,0.00037534,120]
[339796947,1727987574983,-617.57,0.00037534,120]
[339796948,1727987574993,-1322.47,0.00037534,120]
[339796949,1727987575003,-3041.51,0.00037534,120]
[339796950,1727987575012,-685.28,0.00037534,120]
[339796951,1727987575023,-1088.33,0.00037534,120]
[339796952,1727987575032,-678.3,0.00037534,120]
[339796953,1727987575042,-809.97,0.00037534,120]
[339796954,1727987575052,-617.35,0.00037534,120]
[339796955,1727987575061,-500.0,0.00037534,120]
[339796956,1727987575071,-504.49,0.00037534,120]
[339796957,1727987575081,-293.96079983,0.00037534,120]
[339796958,1727987575091,-2582.55,0.00037534,14]
[339796959,1727987575101,-821.22,0.00037534,120]
[339796960,1727987575110,-1192.92,0.00037534,120]
[339796961,1727987575120,-2036.76,0.00037534,2]
[339796962,1727987575129,-752.83,0.00037534,120]
[339796963,1727987575139,-696.33,0.00037534,120]
[339796964,1727987575148,-1822.29,0.00037534,120]
[339796965,1727987575158,-500.0,0.00037534,120]
[339796966,1727987575168,-1595.23,0.00037534,120]
[339796967,1727987575178,-1676.96,0.00037534,120]
[339796968,1727987575188,-500.0,0.00037534,120]
[339796969,1727987575198,-1430.65,0.00037534,120]
[339796970,1727987575207,-1022.58,0.00037534,120]
[339796971,1727987575217,-572.51,0.00037534,120]
[339796972,1727987575228,-743.36,0.00037534,120]
[339796973,1727987575239,-534.34,0.00037534,120]
[339796974,1727987575248,-722.75,0.00037534,120]
[339796975,1727987575258,-891.75,0.00037534,120]
[339796976,1727987575268,-2933.87,0.00037534,120]
[339796977,1727987575278,-734.12,0.00037534,120]
[339796978,1727987575288,-830.44,0.00037534,120]
[339796979,1727987575298,-2736.92,0.00037534,120]
[339796980,1727987575308,-2840.63,0.00037534,120]
[339796981,1727987575318,-1668.6,0.00037534,120]
[339796982,1727987575327,-963.2,0.00037534,120]
[339796983,1727987575338,-3064.64,0.00037534,120]
[339796985,1727987575348,-895.53,0.00037534,120]
[339796986,1727987575358,-603.25,0.00037534,120]
[339796987,1727987575368,-893.66,0.00037534,120]
[339796989,1727987575378,-1265.22,0.00037534,120]
[339796990,1727987575388,-648.93,0.00037534,120]
[339796991,1727987575398,-702.69,0.00037534,120]
[339796993,1727987575408,-912.75,0.00037534,120]
[339796994,1727987575418,-625.95,0.00037534,120]
[339796996,1727987575428,-500.0,0.00037534,120]
[339796997,1727987575437,-589.87,0.00037534,120]
[339796998,1727987575447,-904.15,0.00037534,120]
[339797000,1727987575457,-809.38,0.00037534,120]
[339797001,1727987575466,-1583.67,0.00037534,120]
[339797002,1727987575476,-2849.48,0.00037534,120]
[339797004,1727987575485,-1559.78,0.00037534,120]
[339797005,1727987575495,-526.9,0.00037534,120]
[339797006,1727987575505,-887.97,0.00037534,120]
[339797008,1727987575515,-522.66,0.00037534,120]
[339797009,1727987575525,-608.69,0.00037534,120]
[339797015,1727987575628,-1196.23,0.00037534,120]
[339797016,1727987575667,-1435.23,0.00037534,120]
[339797018,1727987575676,-1891.17,0.00037534,120]
[339797019,1727987575686,-734.62,0.00037534,120]
[339797020,1727987575695,-1907.44,0.00037534,120]
[339797022,1727987575705,-500.0,0.00037534,5]
[339797023,1727987575715,-954.92,0.00037534,30]
[339797024,1727987575725,-760.37,0.00037534,120]
[339797026,1727987575735,-1267.83,0.00037534,120]
[339797027,1727987575744,-500.0,0.00037534,120]
[339797028,1727987575753,-3152.28,0.00037534,120]
[339797029,1727987575763,-692.31,0.00037534,120]
[339797031,1727987575772,-4273.85,0.00037534,2]
[339797032,1727987575781,-2240.67,0.00037534,120]
[339797033,1727987575790,-566.42,0.00037534,120]
[339797035,1727987575799,-1375.15,0.00037534,120]
[339797036,1727987575809,-1352.94,0.00037534,120]
[339797037,1727987575818,-2143.59,0.00037534,120]
[339797039,1727987575828,-500.0,0.00037534,120]
[339797040,1727987575838,-2552.25,0.00037534,120]
[339797041,1727987575847,-807.0,0.00037534,120]
[339797043,1727987575857,-1929.43,0.00037534,120]
[339797044,1727987575868,-500.0,0.00037534,120]
[339797045,1727987575881,-500.0,0.00037534,120]
[339797046,1727987575891,-687.7,0.00037534,120]
[339797047,1727987575902,-685.66,0.00037534,120]
[339797048,1727987575912,-500.0,0.00037534,120]
[339797049,1727987575922,-500.0,0.00037534,120]
[339797050,1727987575933,-1124.73,0.00037534,120]
[339797051,1727987575943,-500.0,0.00037534,120]
[339797052,1727987575954,-500.0,0.00037534,120]
[339797053,1727987575964,-1267.04,0.00037534,120]
[339797054,1727987575974,-1073.96,0.00037534,120]
[339797055,1727987575983,-515.88,0.00037534,120]
[339797056,1727987575994,-924.47,0.00037534,120]
[339797057,1727987576004,-687.49,0.00037534,120]
[339797058,1727987576013,-3529.62,0.00037534,120]
[339797059,1727987576023,-500.0,0.00037534,120]
[339797060,1727987576033,-2122.92,0.00037534,120]
[339797061,1727987576043,-1443.8,0.00037534,120]
[339797062,1727987576054,-583.93,0.00037534,120]
[339797063,1727987576064,-1130.17,0.00037534,120]
[339797064,1727987576074,-598.1,0.00037534,120]
[339797065,1727987576083,-500.0,0.00037534,120]
[339797067,1727987576093,-512.25,0.00037534,120]
[339797068,1727987576104,-739.66,0.00037534,120]
[339797069,1727987576114,-2221.7,0.00037534,120]
[339797071,1727987576125,-753.47,0.00037534,120]
[339797072,1727987576134,-878.47,0.00037534,120]
[339797073,1727987576144,-2105.23,0.00037534,120]
[339797075,1727987576154,-1101.24,0.00037534,120]
[339797076,1727987576163,-880.23,0.00037534,120]
[339797077,1727987576173,-500.0,0.00037534,120]
[339797079,1727987576183,-594.49,0.00037534,120]
[339797080,1727987576193,-500.0,0.00037534,120]
[339797081,1727987576203,-1746.33,0.00037534,120]
[339797083,1727987576213,-983.59,0.00037534,120]
[339797084,1727987576223,-1535.26,0.00037534,120]
[339797085,1727987576234,-3156.06,0.00037534,120]
[339797087,1727987576244,-889.14,0.00037534,120]
[339797088,1727987576254,-754.45,0.00037534,120]
[339797090,1727987576264,-640.32,0.00037534,120]
[339797091,1727987576273,-2375.19,0.00037534,120]
[339797092,1727987576283,-580.84,0.00037534,120]
[339797094,1727987576293,-652.15,0.00037534,120]
[339797095,1727987576303,-2171.15,0.00037534,120]
[339797096,1727987576313,-970.9,0.00037534,120]
[339797098,1727987576322,-576.98,0.00037534,120]
[339797099,1727987576332,-2322.76,0.00037534,120]
[339797100,1727987576341,-2446.1,0.00037534,120]
[339797102,1727987576352,-500.0,0.00037534,120]
[339797103,1727987576363,-569.39,0.00037534,120]
[339797105,1727987576374,-865.83,0.00037534,120]
[339797106,1727987576386,-500.0,0.00037534,120]
[339797107,1727987576395,-559.14,0.00037534,120]
[339797109,1727987576405,-500.0,0.00037534,120]
[339797110,1727987576415,-526.15,0.00037534,120]
[339797111,1727987576424,-500.0,0.00037534,120]
[339797113,1727987576434,-500.0,0.00037534,120]
[339797114,1727987576444,-1022.47,0.00037534,120]
[339797116,1727987576453,-1404.02,0.00037534,120]
[339797117,1727987576463,-500.0,0.00037534,120]
[339797118,1727987576473,-641.91,0.00037534,120]
[339797120,1727987576483,-926.29,0.00037534,120]
[339797121,1727987576494,-796.9,0.00037534,120]
[339797122,1727987576504,-2021.14,0.00037534,120]
[339797124,1727987576516,-3420.05,0.00037534,120]
[339797125,1727987576525,-500.0,0.00037534,120]
[339797127,1727987576535,-585.28,0.00037534,120]
[339797128,1727987576544,-920.88,0.00037534,120]
[339797129,1727987576554,-1372.22,0.00037534,120]
[339797131,1727987576563,-501.73,0.00037534,120]
[339797132,1727987576573,-1014.09,0.00037534,120]
[339797133,1727987576582,-2342.53,0.00037534,120]
[339797135,1727987576593,-849.67,0.00037534,120]
[339797136,1727987576602,-233.20008972,0.00037534,120]
[339797137,1727987576612,-503.33,0.00037534,120]
[339797139,1727987576622,-650.32,0.00037534,120]
[339797140,1727987576631,-619.95,0.00037534,120]
[339797142,1727987576641,-4513.04,0.00037534,120]
[339797143,1727987576650,-697.86,0.00037534,120]
[339797144,1727987576660,-1906.45,0.00037534,120]
[339797146,1727987576670,-500.0,0.00037534,120]
[339797147,1727987576680,-1342.8,0.00037534,120]
[339797148,1727987576690,-500.0,0.00037534,120]
[339797150,1727987576699,-2820.31,0.00037534,120]
[339797151,1727987576709,-4469.7,0.00037534,120]
[339797152,1727987576719,-1714.59,0.00037534,120]
[339797154,1727987576728,-1567.97,0.00037534,120]
[339797155,1727987576738,-858.96,0.00037534,120]
[339797157,1727987576747,-1071.24,0.00037534,120]
[339797158,1727987576756,-1083.26,0.00037534,120]
[339797159,1727987576765,-1923.73,0.00037534,120]
[339797161,1727987576774,-3953.73,0.00037534,120]
[339797162,1727987576784,-646.54,0.00037534,120]
[339797163,1727987576793,-1541.86,0.00037534,120]
[339797165,1727987576803,-825.35,0.00037534,120]
[339797166,1727987576813,-2326.51,0.00037534,120]
[339797167,1727987576823,-1401.87,0.00037534,120]
[339797169,1727987576833,-8162.3,0.00037534,120]
[339797170,1727987576843,-2202.86,0.00037534,3]
[339797171,1727987576852,-1721.6,0.00037534,120]
[339797173,1727987576861,-1824.09,0.00037534,120]
[339797174,1727987576875,-797.25,0.00037534,120]
[339797175,1727987576885,-3694.14,0.00037534,120]
[339797177,1727987576894,-648.29,0.00037534,120]
[339797178,1727987576904,-1962.84,0.00037534,120]
[339797180,1727987576913,-770.99,0.00037534,120]
[339797181,1727987576923,-1812.58,0.00037534,120]
[339797182,1727987576933,-1106.97,0.00037534,120]
[339797184,1727987576942,-995.24,0.00037534,120]
[339797185,1727987576955,-1533.42,0.00037534,120]
[339797186,1727987576964,-1245.45,0.00037534,120]
[339797188,1727987576974,-2708.28,0.00037534,120]
[339797189,1727987576984,-919.76,0.00037534,120]
[339797190,1727987576994,-1028.68,0.00037534,120]
[339797191,1727987577003,-2392.87,0.00037534,120]
[339797193,1727987577014,-1219.91,0.00037534,120]
[339797194,1727987577023,-1971.05,0.00037534,120]
[339797196,1727987577032,-967.14,0.00037534,120]
[339797197,1727987577042,-11039.47,0.00037534,120]
[339797198,1727987577051,-1835.01,0.00037534,120]
[339797200,1727987577060,-647.95,0.00037534,120]
[339797201,1727987577070,-1066.51,0.00037534,120]
[339797202,1727987577079,-2065.61,0.00037534,120]
[339797204,1727987577089,-2041.33,0.00037534,120]
[339797205,1727987577099,-607.58202794,0.00037534,120]
[339797206,1727987577108,-701.71,0.00037534,120]
[339797208,1727987577117,-512.38,0.00037534,120]
[339797209,1727987577128,-527.76,0.00037534,120]
[339797211,1727987577138,-527.0,0.00037534,120]
[339797212,1727987577147,-1302.4,0.00037534,120]
[339797213,1727987577157,-968.42,0.00037534,120]
[339797215,1727987577166,-1041.18,0.00037534,120]
[339797216,1727987577176,-329.95749537,0.00037534,120]
[339797217,1727987577185,-2058.43,0.00037534,120]
[339797219,1727987577195,-1510.82,0.00037534,120]
[339797220,1727987577205,-2566.99,0.00037534,120]
[339797221,1727987577214,-1635.85,0.00037534,120]
[339797223,1727987577224,-500.52,0.00037534,120]
[339797224,1727987577234,-1123.06,0.00037534,120]
[339797225,1727987577244,-1766.39,0.00037534,120]
[339797227,1727987577253,-1421.18,0.00037534,120]
[339797228,1727987577262,-2301.76,0.00037534,120]
[339797229,1727987577272,-1093.77,0.00037534,120]
[339797231,1727987577282,-2041.08,0.00037534,120]
[339797232,1727987577292,-1056.72,0.00037534,120]
[339797233,1727987577301,-500.0,0.00037534,120]
[339797235,1727987577311,-4824.18,0.00037534,120]
[339797236,1727987577321,-575.99,0.00037534,120]
[339797237,1727987577330,-2539.88,0.00037534,120]
[339797239,1727987577339,-1058.32,0.00037534,120]
[339797240,1727987577349,-1031.81,0.00037534,120]
[339797241,1727987577359,-500.0,0.00037534,120]
[339797243,1727987577368,-2770.27,0.00037534,120]
[339797244,1727987577378,-2126.28,0.00037534,120]
[339797245,1727987577387,-3109.58,0.00037534,120]
[339797247,1727987577396,-1989.39,0.00037534,120]
[339797248,1727987577405,-2838.83,0.00037534,120]
[339797249,1727987577414,-2454.73,0.00037534,120]
[339797251,1727987577423,-2489.9,0.00037534,120]
[339797252,1727987577432,-1548.63,0.00037534,120]
[339797254,1727987577441,-1539.86,0.00037534,120]
[339797255,1727987577450,-500.0,0.00037534,120]
[339797256,1727987577459,-1135.51,0.00037534,120]
[339797258,1727987577469,-751.5,0.00037534,120]
[339797259,1727987577478,-26307.75,0.00037534,120]
[339797260,1727987577487,-1359.32,0.00037534,120]
[339797262,1727987577496,-920.13,0.00037534,120]
[339797263,1727987577506,-2373.28,0.00037534,120]
[339797264,1727987577516,-723.9,0.00037534,120]
[339797266,1727987577525,-500.0,0.00037534,120]
[339797267,1727987577536,-683.05,0.00037534,120]
[339797269,1727987577545,-1328.33,0.00037534,120]
[339797270,1727987577554,-1718.99,0.00037534,120]
[339797271,1727987577563,-500.0,0.00037534,120]
[339797273,1727987577572,-2515.59,0.00037534,120]
[339797274,1727987577583,-953.41,0.00037534,120]
[339797275,1727987577592,-876.22,0.00037534,120]
[339797277,1727987577601,-2264.01,0.00037534,120]
[339797278,1727987577611,-2588.02,0.00037534,120]
[339797279,1727987577620,-1281.35,0.00037534,120]
[339797281,1727987577630,-1057.1,0.00037534,120]
[339797282,1727987577641,-1543.66,0.00037534,120]
[339797283,1727987577650,-567.28,0.00037534,120]
[339797285,1727987577659,-1173.73,0.00037534,120]
[339797286,1727987577669,-622.45,0.00037534,120]
[339797288,1727987577679,-831.03,0.00037534,120]
[339797289,1727987577688,-574.46,0.00037534,120]
[339797297,1727987577980,-605.72,0.00037534,120]
[339797298,1727987577992,-656.14,0.00037534,24]
[339797299,1727987578002,-999.57,0.00037534,120]
[339797300,1727987578012,-1059.55,0.00037534,120]
[339797301,1727987578021,-1114.36,0.00037534,120]
[339797302,1727987578031,-2557.98,0.00037534,120]
[339797303,1727987578040,-2619.08,0.00037534,120]
[339797304,1727987578050,-985.85,0.00037534,120]
[339797306,1727987578059,-2196.8,0.00037534,120]
[339797307,1727987578069,-1368.57,0.00037534,120]
[339797308,1727987578078,-534.46,0.00037534,120]
[339797310,1727987578088,-623.45,0.00037534,120]
[339797311,1727987578098,-1760.97,0.00037534,120]
[339797312,1727987578108,-4833.89,0.00037534,120]
[339797314,1727987578117,-1036.03,0.00037534,120]
[339797315,1727987578127,-613.95,0.00037534,120]
[339797316,1727987578138,-1295.57,0.00037534,120]
[339797318,1727987578148,-1100.59,0.00037534,120]
[339797319,1727987578158,-1437.23,0.00037534,120]